fUST/lending_fUST_20250526
["ID","MTS","AMOUNT","RATE_DAILY","PERIOD"]
[362331128,1748199054608,-430.0,0.00020273,2]
[362331129,1748199054618,-478.9,0.00020273,2]
[362331130,1748199054628,-430.0,0.00020273,2]
[362331131,1748199054639,-430.0,0.00020273,2]
[362331132,1748199054649,-3258.63,0.00020273,2]
[362331133,1748199054659,-430.0,0.00020273,2]
[362331134,1748199054668,-430.0,0.00020273,2]
[362331135,1748199054678,-786.45,0.00020273,2]
[362331136,1748199054688,-723.95,0.00020273,2]
[362331137,1748199054698,-1033.61,0.00020273,2]
[362331138,1748199054709,-1001.83,0.00020273,2]
[362331139,1748199054719,-430.0,0.00020273,2]
[362331140,1748199054729,-1403.28,0.00020273,2]
[362331141,1748199054740,-430.0,0.00020273,2]
[362331142,1748199054749,-430.0,0.00020273,2]
[362331143,1748199054760,-1692.97,0.00020273,2]
[362331144,1748199054770,-440.72,0.00020273,2]
[362331145,1748199054779,-430.0,0.00020273,2]
[362331146,1748199054790,-2132.2,0.00020273,2]
[362331147,1748199054799,-430.0,0.00020273,2]
[362331148,1748199054809,-528.91,0.00020273,2]
[362331149,1748199054819,-430.0,0.00020273,2]
[362331150,1748199054830,-226.42688992,0.00020273,2]
[362331151,1748199054841,-430.0,0.00020273,2]
[362331152,1748199054850,-822.52,0.00020273,2]
[362331153,1748199054861,-460.04408824,0.00020273,2]
[362331154,1748199054870,-786.46,0.00020273,2]
[362331155,1748199054881,-2804.73,0.00020273,2]
[362331156,1748199054892,-430.0,0.00020273,2]
[362331157,1748199054902,-430.0,0.00020273,2]
[362331158,1748199054912,-430.0,0.00020273,2]
[362331159,1748199054922,-1276.03,0.00020273,2]
[362331160,1748199054935,-945.97,0.00020273,2]
[362331161,1748199054945,-657.58,0.00020273,2]
[362331162,1748199054955,-430.0,0.00020273,2]
[362331163,1748199054965,-430.0,0.00020273,2]
[362331164,1748199054975,-2167.85,0.00020273,2]
[362331165,1748199054986,-600.63,0.00020273,2]
[362331166,1748199054996,-570.62,0.00020273,2]
[362331167,1748199055006,-812.6,0.00020273,2]
[362331168,1748199055019,-430.0,0.00020273,2]
[362331169,1748199055030,-430.0,0.00020273,2]
[362331170,1748199055040,-6161.91,0.00020273,2]
[362331171,1748199055050,-1894.93,0.00020273,2]
[362331172,1748199055061,-430.0,0.00020273,2]
[362331173,1748199055071,-373.54459368,0.00020273,2]
[362331174,1748199055081,-430.0,0.00020273,2]
[362331175,1748199055091,-700.42,0.00020273,2]
[362331176,1748199055102,-430.0,0.00020273,2]
[362331177,1748199055112,-647.58,0.00020273,2]
[362331178,1748199055122,-1100.01,0.00020273,2]
[362331179,1748199055131,-430.0,0.00020273,2]
[362331180,1748199055143,-5160.82,0.00020273,2]
[362331181,1748199055153,-3570.87,0.00020273,2]
[362331182,1748199055162,-520.48,0.00020273,2]
[362331183,1748199055172,-473.03,0.00020273,2]
[362331184,1748199055181,-430.0,0.00020273,2]
[362331185,1748199055192,-824.54,0.00020273,2]
[362331186,1748199055201,-430.0,0.00020273,2]
[362331187,1748199055211,-668.01,0.00020273,2]
[362331188,1748199055222,-430.0,0.00020273,2]
[362331189,1748199055232,-430.0,0.00020273,2]
[362331190,1748199055242,-430.0,0.00020273,2]
[362331191,1748199055252,-692.19,0.00020273,2]
[362331192,1748199055261,-430.0,0.00020273,2]
[362331193,1748199055271,-430.0,0.00020273,2]
[362331194,1748199055280,-430.0,0.00020273,2]
[362331195,1748199055290,-430.0,0.00020273,2]
[362331196,1748199055300,-1742.48,0.00020273,2]
[362331197,1748199055309,-856.78,0.00020273,2]
[362331198,1748199055319,-900.0,0.00020274,2]
[362331199,1748199055328,-1054.17563413,0.00020314,3]
[362331200,1748199055337,-205.0,0.0002038,2]
[362331201,1748199055346,-160.0,0.00020464,4]
[362331202,1748199055356,-366200.91858827,0.00020468,3]
[362331203,1748199055365,-2000.0,0.000205,2]
[362331204,1748199055374,-169.72031621,0.00020521,2]
[362331205,1748199055383,-430.0,0.00020547,2]
[362331206,1748199055394,-430.0,0.00020547,2]
[362331207,1748199055403,-430.0,0.00020547,2]
[362331208,1748199055413,-430.0,0.00020547,2]
[362331209,1748199055422,-430.0,0.00020547,2]
[362331210,1748199055432,-435.37455248,0.00020547,2]
[362331211,1748199055441,-430.0,0.00020547,2]
[362331212,1748199055451,-533.96976224,0.00020547,2]
[362331213,1748199055460,-430.0,0.00020547,2]
[362331214,1748199055470,-430.0,0.00020547,2]
[362331215,1748199055479,-469.39,0.00020547,2]
[362331216,1748199055488,-430.0,0.00020547,2]
[362331217,1748199055498,-430.0,0.00020547,2]
[362331218,1748199055508,-430.0,0.00020547,2]
[362331219,1748199055517,-430.0,0.00020547,2]
[362331220,1748199055527,-435.21046813,0.00020547,2]
[362331221,1748199055537,-430.0,0.00020547,2]
[362331222,1748199055546,-430.0,0.00020547,2]
[362331223,1748199055556,-430.0,0.00020547,2]
[362331224,1748199055566,-430.0,0.00020547,2]
[362331225,1748199055575,-430.0,0.00020547,2]
[362331226,1748199055584,-430.0,0.00020547,2]
[362331227,1748199055594,-430.0,0.00020547,2]
[362331228,1748199055603,-430.0,0.00020547,2]
[362331229,1748199055613,-585.98,0.00020547,2]
[362331230,1748199055623,-430.0,0.00020547,2]
[362331231,1748199055634,-430.0,0.00020547,2]
[362331232,1748199055644,-430.0,0.00020547,2]
[362331233,1748199055653,-430.0,0.00020547,2]
[362331234,1748199055663,-2370.42,0.00020547,2]
[362331235,1748199055673,-469.21,0.00020547,2]
[362331236,1748199055684,-430.0,0.00020547,2]
[362331237,1748199055700,-430.0,0.00020547,2]
[362331238,1748199055710,-430.0,0.00020547,2]
[362331239,1748199055719,-430.0,0.00020547,2]
[362331240,1748199055729,-430.0,0.00020547,2]
[362331241,1748199055739,-430.0,0.00020547,2]
[362331242,1748199055749,-430.0,0.00020547,2]
[362331243,1748199055760,-2882.64,0.00020547,2]
[362331244,1748199055770,-926.43,0.00020547,2]
[362331245,1748199055780,-3443.45,0.00020547,2]
[362331246,1748199055789,-1678.2,0.00020547,2]
[362331247,1748199055799,-430.0,0.00020547,2]
[362331248,1748199055809,-430.0,0.00020547,2]
[362331249,1748199055819,-430.0,0.00020547,2]
[362331250,1748199055829,-614.57,0.00020547,2]
[362331251,1748199055839,-732.51,0.00020547,2]
[362331252,1748199055849,-461.34,0.00020547,2]
[362331253,1748199055859,-430.0,0.00020547,2]
[362331254,1748199055869,-430.0,0.00020547,2]
[362331255,1748199055879,-561.64,0.00020547,2]
[362331256,1748199055889,-500.0,0.00020547,2]
[362331257,1748199055899,-1734.37,0.00020547,2]
[362331258,1748199055908,-430.0,0.00020547,2]
[362331259,1748199055919,-917.0,0.00020547,2]
[362331260,1748199055932,-430.0,0.00020547,2]
[362331261,1748199055943,-670.11,0.00020547,2]
[362331262,1748199055953,-430.0,0.00020547,2]
[362331263,1748199055963,-478.9,0.00020547,2]
[362331264,1748199055975,-430.0,0.00020547,2]
[362331265,1748199055986,-430.0,0.00020547,2]
[362331266,1748199055996,-3258.63,0.00020547,2]
[362331267,1748199056008,-430.0,0.00020547,2]
[362331268,1748199056019,-430.0,0.00020547,2]
[362331269,1748199056029,-786.45,0.00020547,2]
[362331270,1748199056039,-723.95,0.00020547,2]
[362331271,1748199056049,-1033.61,0.00020547,2]
[362331272,1748199056060,-1001.83,0.00020547,2]
[362331273,1748199056070,-430.0,0.00020547,2]
[362331274,1748199056080,-1403.28,0.00020547,2]
[362331275,1748199056090,-430.0,0.00020547,2]
[362331276,1748199056100,-430.0,0.00020547,2]
[362331277,1748199056109,-1692.97,0.00020547,2]
[362331278,1748199056118,-440.72,0.00020547,2]
[362331279,1748199056127,-430.0,0.00020547,2]
[362331280,1748199056138,-2132.2,0.00020547,2]
[362331281,1748199056148,-430.0,0.00020547,2]
[362331282,1748199056158,-528.91,0.00020547,2]
[362331283,1748199056169,-430.0,0.00020547,2]
[362331284,1748199056180,-430.0,0.00020547,2]
[362331285,1748199056191,-822.52,0.00020547,2]
[362331286,1748199056201,-786.46,0.00020547,2]
[362331287,1748199056210,-2804.73,0.00020547,2]
[362331288,1748199056219,-430.0,0.00020547,2]
[362331289,1748199056229,-430.0,0.00020547,2]
[362331290,1748199056238,-430.0,0.00020547,2]
[362331291,1748199056249,-1276.03,0.00020547,2]
[362331292,1748199056258,-945.97,0.00020547,2]
[362331293,1748199056268,-657.58,0.00020547,2]
[362331294,1748199056277,-430.0,0.00020547,2]
[362331295,1748199056287,-430.0,0.00020547,2]
[362331296,1748199056297,-2167.85,0.00020547,2]
[362331297,1748199056307,-600.63,0.00020547,2]
[362331298,1748199056316,-570.62,0.00020547,2]
[362331299,1748199056326,-812.6,0.00020547,2]
[362331300,1748199056335,-430.0,0.00020547,2]
[362331301,1748199056344,-430.0,0.00020547,2]
[362331302,1748199056354,-6161.91,0.00020547,2]
[362331303,1748199056363,-1894.93,0.00020547,2]
[362331304,1748199056372,-430.0,0.00020547,2]
[362331305,1748199056382,-430.0,0.00020547,2]
[362331306,1748199056392,-700.42,0.00020547,2]
[362331307,1748199056402,-430.0,0.00020547,2]
[362331308,1748199056411,-647.58,0.00020547,2]
[362331309,1748199056421,-1100.01,0.00020547,2]
[362331310,1748199056431,-430.0,0.00020547,2]
[362331311,1748199056440,-5160.82,0.00020547,2]
[362331312,1748199056450,-3570.87,0.00020547,2]
[362331313,1748199056460,-520.48,0.00020547,2]
[362331314,1748199056470,-473.03,0.00020547,2]
[362331315,1748199056479,-430.0,0.00020547,2]
[362331316,1748199056489,-824.54,0.00020547,2]
[362331317,1748199056499,-430.0,0.00020547,2]
[362331318,1748199056509,-668.01,0.00020547,2]
[362331319,1748199056519,-430.0,0.00020547,2]
[362331320,1748199056528,-430.0,0.00020547,2]
[362331321,1748199056538,-430.0,0.00020547,2]
[362331322,1748199056700,-692.19,0.00020547,2]
[362331323,1748199056710,-430.0,0.00020547,2]
[362331324,1748199056720,-430.0,0.00020547,2]
[362331325,1748199056729,-430.0,0.00020547,2]
[362331326,1748199056739,-430.0,0.00020547,2]
[362331327,1748199056748,-1742.48,0.00020547,2]
[362331328,1748199056758,-856.78,0.00020547,2]
[362331329,1748199056767,-189.730191,0.00020548,2]
[362331330,1748199056776,-1054.17563413,0.00020555,3]
[362331331,1748199056786,-212.55626673,0.0002056,3]
[362331332,1748199056797,-894.64583333,0.0002056,3]
[362331333,1748199056806,-12652.24558203,0.0002056,3]
[362331334,1748199056815,-152.71151188,0.00020603,2]
[362331335,1748199056824,-21492.35590844,0.0002061,2]
[362331336,1748199056834,-205.0,0.0002064,2]
[362331337,1748199056844,-1500.0,0.0002071,2]
[362331338,1748199056853,-152.71151188,0.00020712,2]
[362331339,1748199056863,-152.71151188,0.00020795,2]
[362331340,1748199056872,-1054.17563413,0.00020797,4]
[362331341,1748199056882,-430.0,0.00020821,2]
[362331342,1748199056893,-430.0,0.00020821,2]
[362331343,1748199056902,-430.0,0.00020821,2]
[362331344,1748199056912,-340.00681487,0.00020821,2]
[362331345,1748199056921,-430.0,0.00020821,2]
[362331346,1748199056932,-430.0,0.00020821,2]
[362331347,1748199056942,-430.0,0.00020821,2]
[362331348,1748199056952,-430.0,0.00020821,2]
[362331349,1748199056961,-469.39,0.00020821,2]
[362331350,1748199056971,-430.0,0.00020821,2]
[362331351,1748199056982,-430.0,0.00020821,2]
[362331352,1748199056991,-430.0,0.00020821,2]
[362331353,1748199057000,-430.0,0.00020821,2]
[362331354,1748199057010,-403.85,0.00020821,2]
[362331355,1748199057023,-430.0,0.00020821,2]
[362331356,1748199057032,-430.0,0.00020821,2]
[362331357,1748199057041,-430.0,0.00020821,2]
[362331358,1748199057050,-430.0,0.00020821,2]
[362331359,1748199057060,-430.0,0.00020821,2]
[362331360,1748199057069,-430.0,0.00020821,2]
[362331361,1748199057078,-430.0,0.00020821,2]
[362331362,1748199057087,-585.98,0.00020821,2]
[362331363,1748199057096,-430.0,0.00020821,2]
[362331364,1748199057105,-430.0,0.00020821,2]
[362331365,1748199057115,-430.0,0.00020821,2]
[362331366,1748199057124,-430.0,0.00020821,2]
[362331367,1748199057133,-2370.42,0.00020821,2]
[362331368,1748199057143,-469.21,0.00020821,2]
[362331369,1748199057152,-430.0,0.00020821,2]
[362331370,1748199057161,-430.0,0.00020821,2]
[362331371,1748199057171,-430.0,0.00020821,2]
[362331372,1748199057180,-430.0,0.00020821,2]
[362331373,1748199057190,-430.0,0.00020821,2]
[362331374,1748199057199,-430.0,0.00020821,2]
[362331375,1748199057209,-430.0,0.00020821,2]
[362331376,1748199057219,-2882.64,0.00020821,2]
[362331377,1748199057228,-926.43,0.00020821,2]
[362331378,1748199057238,-3443.45,0.00020821,2]
[362331379,1748199057247,-1678.2,0.00020821,2]
[362331380,1748199057256,-430.0,0.00020821,2]
[362331381,1748199057267,-430.0,0.00020821,2]
[362331382,1748199057277,-430.0,0.00020821,2]
[362331383,1748199057287,-614.57,0.00020821,2]
[362331384,1748199057296,-732.51,0.00020821,2]
[362331385,1748199057306,-461.34,0.00020821,2]
[362331386,1748199057315,-430.0,0.00020821,2]
[362331387,1748199057325,-430.0,0.00020821,2]
[362331388,1748199057334,-561.64,0.00020821,2]
[362331389,1748199057344,-500.0,0.00020821,2]
[362331390,1748199057354,-1734.37,0.00020821,2]
[362331391,1748199057363,-430.0,0.00020821,2]
[362331392,1748199057373,-917.0,0.00020821,2]
[362331393,1748199057382,-430.0,0.00020821,2]
[362331394,1748199057393,-670.11,0.00020821,2]
[362331395,1748199057403,-430.0,0.00020821,2]
[362331396,1748199057413,-478.9,0.00020821,2]
[362331397,1748199057423,-430.0,0.00020821,2]
[362331398,1748199057433,-430.0,0.00020821,2]
[362331399,1748199057443,-3258.63,0.00020821,2]
[362331400,1748199057453,-430.0,0.00020821,2]
[362331401,1748199057463,-786.45,0.00020821,2]
[362331402,1748199057473,-723.95,0.00020821,2]
[362331403,1748199057482,-1033.61,0.00020821,2]
[362331404,1748199057492,-1001.83,0.00020821,2]
[362331405,1748199057501,-430.0,0.00020821,2]
[362331406,1748199057512,-1403.28,0.00020821,2]
[362331407,1748199057522,-430.0,0.00020821,2]
[362331408,1748199057532,-430.0,0.00020821,2]
[362331409,1748199057541,-1692.97,0.00020821,2]
[362331410,1748199057551,-440.72,0.00020821,2]
[362331411,1748199057561,-430.0,0.00020821,2]
[362331412,1748199057571,-2132.2,0.00020821,2]
[362331413,1748199057581,-430.0,0.00020821,2]
[362331414,1748199057590,-528.91,0.00020821,2]
[362331415,1748199057600,-430.0,0.00020821,2]
[362331416,1748199057610,-430.0,0.00020821,2]
[362331417,1748199057620,-822.52,0.00020821,2]
[362331418,1748199057630,-786.46,0.00020821,2]
[362331419,1748199057640,-2804.73,0.00020821,2]
[362331420,1748199057650,-384.8,0.00020821,2]
[362331421,1748199057659,-430.0,0.00020821,2]
[362331422,1748199057669,-430.0,0.00020821,2]
[362331423,1748199057680,-1276.03,0.00020821,2]
[362331424,1748199057690,-945.97,0.00020821,2]
[362331425,1748199057700,-657.58,0.00020821,2]
[362331426,1748199057710,-430.0,0.00020821,2]
[362331427,1748199057720,-430.0,0.00020821,2]
[362331428,1748199057730,-2167.85,0.00020821,2]
[362331429,1748199057740,-600.63,0.00020821,2]
[362331430,1748199057750,-570.62,0.00020821,2]
[362331431,1748199057760,-812.6,0.00020821,2]
[362331432,1748199057770,-430.0,0.00020821,2]
[362331433,1748199057779,-430.0,0.00020821,2]
[362331434,1748199057789,-6161.91,0.00020821,2]
[362331435,1748199057798,-1894.93,0.00020821,2]
[362331436,1748199057809,-475.1260901,0.00020821,2]
[362331437,1748199057819,-430.0,0.00020821,2]
[362331438,1748199057830,-700.42,0.00020821,2]
[362331439,1748199057841,-430.0,0.00020821,2]
[362331440,1748199057851,-647.58,0.00020821,2]
[362331441,1748199057862,-1100.01,0.00020821,2]
[362331442,1748199057874,-430.0,0.00020821,2]
[362331443,1748199057884,-5160.82,0.00020821,2]
[362331444,1748199057894,-3570.87,0.00020821,2]
[362331445,1748199057903,-520.48,0.00020821,2]
[362331446,1748199057913,-473.03,0.00020821,2]
[362331447,1748199057924,-430.0,0.00020821,2]
[362331448,1748199057937,-824.54,0.00020821,2]
[362331449,1748199057947,-430.0,0.00020821,2]
[362331450,1748199057956,-668.01,0.00020821,2]
[362331451,1748199057966,-430.0,0.00020821,2]
[362331452,1748199057978,-430.0,0.00020821,2]
[362331453,1748199057987,-430.0,0.00020821,2]
[362331454,1748199057997,-692.19,0.00020821,2]
[362331455,1748199058008,-430.0,0.00020821,2]
[362331456,1748199058018,-430.0,0.00020821,2]
[362331457,1748199058028,-430.0,0.00020821,2]
[362331458,1748199058038,-430.0,0.00020821,2]
[362331459,1748199058048,-1742.48,0.00020821,2]
[362331460,1748199058058,-856.78,0.00020821,2]
[362331461,1748199058067,-205.0,0.000209,2]
[362331462,1748199058077,-12794.15222282,0.000209,2]
[362331463,1748199058086,-152.71151188,0.00020904,2]
[362331464,1748199058096,-500.0,0.00020916,7]
[362331465,1748199058106,-500.0,0.00020916,7]
[362331466,1748199058116,-500.0,0.00020916,7]
[362331467,1748199058126,-500.0,0.00020916,7]
[362331468,1748199058136,-500.0,0.00020916,7]
[362331469,1748199058145,-500.0,0.00020916,7]
[362331470,1748199058155,-500.0,0.00020916,7]
[362331471,1748199058164,-500.0,0.00020916,7]
[362331472,1748199058174,-500.0,0.00020916,7]
[362331473,1748199058184,-500.0,0.00020916,7]
[362331474,1748199058193,-500.0,0.00020916,7]
[362331475,1748199058203,-500.0,0.00020916,7]
[362331476,1748199058212,-500.0,0.00020916,7]
[362331477,1748199058221,-546.01,0.00020916,7]
[362331478,1748199058230,-500.0,0.00020916,7]
[362331479,1748199058240,-30032.06,0.00021,4]
[362331480,1748199058249,-200.23303338,0.00021,2]
[362331481,1748199058259,-2000.0,0.00021,2]
[362331482,1748199058268,-50000.0,0.00021,2]
[362331483,1748199058278,-50000.0,0.00021,2]
[362331484,1748199058287,-50000.0,0.00021,2]
[362331485,1748199058298,-50000.0,0.00021,2]
[362331486,1748199058308,-50000.0,0.00021,2]
[362331487,1748199058317,-50000.0,0.00021,2]
[362331488,1748199058327,-50000.0,0.00021,2]
[362331489,1748199058337,-50000.0,0.00021,2]
[362331490,1748199058346,-50000.0,0.00021,2]
[362331491,1748199058356,-50000.0,0.00021,2]
[362331492,1748199058365,-50000.0,0.00021,2]
[362331493,1748199058375,-19678.0,0.00021,2]
[362331494,1748199058386,-1003.0,0.00021,2]
[362331495,1748199058396,-10000.0,0.00021,2]
[362331496,1748199058406,-10000.0,0.00021,2]
[362331497,1748199058415,-9485.84632,0.00021,2]
[362331498,1748199058425,-250.0,0.00021,2]
[362331499,1748199058435,-10000.0,0.00021,5]
[362331500,1748199058444,-2000.0,0.00021,2]
[362331501,1748199058454,-2000.0,0.00021,2]
[362331502,1748199058464,-2000.0,0.00021,2]
[362331503,1748199058474,-152.71151188,0.00021014,2]
[362331504,1748199058484,-1054.17563413,0.00021038,4]
[362331505,1748199058494,-430.0,0.00021095,2]
[362331506,1748199058504,-430.0,0.00021095,2]
[362331507,1748199058514,-430.0,0.00021095,2]
[362331508,1748199058524,-430.0,0.00021095,2]
[362331509,1748199058533,-430.0,0.00021095,2]
[362331510,1748199058543,-430.0,0.00021095,2]
[362331511,1748199058552,-430.0,0.00021095,2]
[362331512,1748199058563,-469.39,0.00021095,2]
[362331513,1748199058572,-430.0,0.00021095,2]
[362331514,1748199058582,-430.0,0.00021095,2]
[362331515,1748199058591,-430.0,0.00021095,2]
[362331516,1748199058600,-430.0,0.00021095,2]
[362331517,1748199058611,-430.0,0.00021095,2]
[362331518,1748199058620,-430.0,0.00021095,2]
[362331519,1748199058629,-430.0,0.00021095,2]
[362331520,1748199058640,-430.0,0.00021095,2]
[362331521,1748199058649,-430.0,0.00021095,2]
[362331522,1748199058659,-430.0,0.00021095,2]
[362331523,1748199058669,-585.98,0.00021095,2]
[362331524,1748199058679,-430.0,0.00021095,2]
[362331525,1748199058688,-430.0,0.00021095,2]
[362331526,1748199058697,-490.52,0.00021095,2]
[362331527,1748199058709,-430.0,0.00021095,2]
[362331528,1748199058718,-2370.42,0.00021095,2]
[362331529,1748199058728,-469.21,0.00021095,2]
[362331530,1748199058737,-430.0,0.00021095,2]
[362331531,1748199058747,-430.0,0.00021095,2]
[362331532,1748199058756,-430.0,0.00021095,2]
[362331533,1748199058765,-430.0,0.00021095,2]
[362331534,1748199058776,-430.0,0.00021095,2]
[362331535,1748199058786,-430.0,0.00021095,2]
[362331536,1748199058798,-430.0,0.00021095,2]
[362331537,1748199058808,-2882.64,0.00021095,2]
[362331538,1748199058818,-926.43,0.00021095,2]
[362331539,1748199058828,-3443.45,0.00021095,2]
[362331540,1748199058838,-1678.2,0.00021095,2]
[362331541,1748199058848,-430.0,0.00021095,2]
[362331542,1748199058857,-430.0,0.00021095,2]
[362331543,1748199058868,-430.0,0.00021095,2]
[362331544,1748199058878,-614.57,0.00021095,2]
[362331545,1748199058889,-732.51,0.00021095,2]
[362331546,1748199058898,-461.34,0.00021095,2]
[362331547,1748199058908,-430.0,0.00021095,2]
[362331548,1748199058918,-430.0,0.00021095,2]
[362331549,1748199058931,-561.64,0.00021095,2]
[362331550,1748199058943,-500.0,0.00021095,2]
[362331551,1748199058956,-1734.37,0.00021095,2]
[362331552,1748199058967,-177.63011701,0.00021095,2]
[362331553,1748199058980,-917.0,0.00021095,2]
[362331554,1748199058989,-430.0,0.00021095,2]
[362331555,1748199059000,-670.11,0.00021095,2]
[362331556,1748199059012,-430.0,0.00021095,2]
[362331557,1748199059022,-478.9,0.00021095,2]
[362331558,1748199059031,-430.0,0.00021095,2]
[362331559,1748199059040,-430.0,0.00021095,2]
[362331560,1748199059050,-3258.63,0.00021095,2]
[362331561,1748199059060,-430.0,0.00021095,2]
[362331562,1748199059069,-786.45,0.00021095,2]
[362331563,1748199059079,-723.95,0.00021095,2]
[362331564,1748199059089,-1033.61,0.00021095,2]
[362331565,1748199059098,-1001.83,0.00021095,2]
[362331566,1748199059107,-430.0,0.00021095,2]
[362331567,1748199059117,-1403.28,0.00021095,2]
[362331568,1748199059126,-430.0,0.00021095,2]
[362331569,1748199059261,-430.0,0.00021095,2]
[362331570,1748199059271,-1692.97,0.00021095,2]
[362331571,1748199059280,-440.72,0.00021095,2]
[362331572,1748199059290,-430.0,0.00021095,2]
[362331573,1748199059299,-2132.2,0.00021095,2]
[362331574,1748199059309,-430.0,0.00021095,2]
[362331575,1748199059319,-528.91,0.00021095,2]
[362331576,1748199059329,-430.0,0.00021095,2]
[362331577,1748199059339,-430.0,0.00021095,2]
[362331578,1748199059348,-822.52,0.00021095,2]
[362331579,1748199059358,-786.46,0.00021095,2]
[362331580,1748199059368,-2804.73,0.00021095,2]
[362331581,1748199059377,-430.0,0.00021095,2]
[362331582,1748199059387,-430.0,0.00021095,2]
[362331583,1748199059397,-1276.03,0.00021095,2]
[362331584,1748199059407,-945.97,0.00021095,2]
[362331585,1748199059417,-657.58,0.00021095,2]
[362331586,1748199059426,-430.0,0.00021095,2]
[362331587,1748199059436,-430.0,0.00021095,2]
[362331588,1748199059446,-2167.85,0.00021095,2]
[362331589,1748199059455,-600.63,0.00021095,2]
[362331590,1748199059465,-570.62,0.00021095,2]
[362331591,1748199059475,-812.6,0.00021095,2]
[362331592,1748199059484,-422.53181784,0.00021095,2]
[362331593,1748199059493,-430.0,0.00021095,2]
[362331594,1748199059502,-6161.91,0.00021095,2]
[362331595,1748199059512,-1894.93,0.00021095,2]
[362331596,1748199059521,-430.0,0.00021095,2]
[362331597,1748199059531,-700.42,0.00021095,2]
[362331598,1748199059540,-430.0,0.00021095,2]
[362331599,1748199059550,-647.58,0.00021095,2]
[362331600,1748199059560,-1100.01,0.00021095,2]
[362331601,1748199059569,-430.0,0.00021095,2]
[362331602,1748199059578,-5160.82,0.00021095,2]
[362331603,1748199059587,-3570.87,0.00021095,2]
[362331604,1748199059597,-520.48,0.00021095,2]
[362331605,1748199059606,-473.03,0.00021095,2]
[362331606,1748199059616,-364.80785142,0.00021095,2]
[362331607,1748199059626,-824.54,0.00021095,2]
[362331608,1748199059635,-316.8762261,0.00021095,2]
[362331609,1748199059645,-668.01,0.00021095,2]
[362331610,1748199059654,-430.0,0.00021095,2]
[362331611,1748199059664,-430.0,0.00021095,2]
[362331612,1748199059674,-430.0,0.00021095,2]
[362331613,1748199059683,-692.19,0.00021095,2]
[362331614,1748199059693,-430.0,0.00021095,2]
[362331615,1748199059702,-430.0,0.00021095,2]
[362331616,1748199059712,-430.0,0.00021095,2]
[362331617,1748199059721,-430.0,0.00021095,2]
[362331618,1748199059731,-1742.48,0.00021095,2]
[362331619,1748199059741,-856.78,0.00021095,2]
[362331620,1748199059750,-152.71151188,0.00021096,2]
[362331621,1748199059759,-250.0,0.00021143,2]
[362331622,1748199059768,-205.0,0.0002115,2]
[362331623,1748199059778,-152.71151188,0.00021205,2]
[362331624,1748199059787,-800.0,0.00021213,2]
[362331625,1748199059797,-800.0,0.00021216,2]
[362331626,1748199059807,-300.0,0.00021234,5]
[362331627,1748199059816,-2000.0,0.00021258,2]